Workbook

Sheet Munka1
A1: Budapesti Erőmű Zártkörűen Működő Részvénytársaság
C11: 2002. év | D11: 2003. év | E11: 2004. év | F11: 2005. év | G11: 2006. év | H11: 2007. év | I11: 2008. év | J11: 2009. év | K11: 2010. év | L11: 2011. év
A12: Értékesítés nettó árbevétele | B12: Ft | C12: 32604823000 | D12: 35577472000 | E12: 36028787000 | F12: 38633377000 | G12: 44995844000 | H12: 52721765000 | I12: 66025050000 | J12: 56390003000 | K12: 61539970000 | L12: 60083109000
B13: % | C13: 100 | D13: =D12/C12 -> 1.091172064 | E13: 1.012685415 | F13: 1.072291915 | G13: 1.164688347 | H13: 1.171702991 | I13: 1.252330039 | J13: 0.8540698265 | K13: =K12/J12 -> 1.09132766 | L13: =L12/K12 -> 0.976326589
A14: ÜZEMI (ÜZLETI) TEVÉKENYSÉG EREDMÉNYE | B14: Ft | C14: 3509350000 | D14: 8039364000 | E14: 3537597000 | F14: 4254854000 | G14: -8592612000 | H14: 3426232000 | I14: 4173295000 | J14: 4404284000 | K14: 5599573000 | L14: -21946128
B15: % | C15: 100 | D15: =D14/C14 -> 2.290841324 | E15: 0.4400344356 | F15: 1.202752603 | G15: -2.01948457 | H15: -0.3987416166 | I15: 1.218042152 | J15: 1.05534931 | K15: =K14/J14 -> 1.271392353 | L15: =L14/K14 -> -0.003919250271
A16: SZOKÁSOS VÁLLALKOZÁSI EREDMÉNY | B16: Ft | C16: 1453825000 | D16: 4643656000 | E16: 4219155000 | F16: 2015413000 | G16: -10406969000 | H16: 969119000 | I16: 233327000 | J16: 1348625000 | K16: 2946259000 | L16: -26917424
B17: % | C17: 100 | D17: =D16/C16 -> 3.194095575 | E17: 0.9085847444 | F17: 0.4776816685 | G17: -5.163690519 | H17: -0.09312211846 | I17: 0.2407619704 | J17: 5.779978314 | K17: =K16/J16 -> 2.18463917 | L17: =L16/K16 -> -0.009136136368
A18: ADÓZÁS ELŐTTI EREDMÉNY | B18: Ft | C18: 1827176000 | D18: 4569086000 | E18: 4313414000 | F18: 1997252000 | G18: 2725467000 | H18: 871031000 | I18: 202869000 | J18: 1327197000 | K18: 2884791000 | L18: 26948886000
B19: % | C19: 100 | D19: =D18/C18 -> 2.500627197 | E19: 0.9440430756 | F19: 0.4630327624 | G19: 1.364608472 | H19: 0.3195896336 | I19: 0.2329067507 | J19: 6.54213803 | K19: =K18/J18 -> 2.173596685 | L19: =L18/K18 -> 9.341711757
A20: ADÓZOTT EREDMÉNY | B20: Ft | C20: 1827176000 | D20: 4432055000 | E20: 4450445000 | F20: 1997252000 | G20: 2725467000 | H20: 871031000 | I20: 193585000 | J20: 1262402000 | K20: 2704649000 | L20: -26948886000
B21: % | C21: 100 | D21: =D20/C20 -> 2.425631138 | E21: 1.004149317 | F21: 0.4487757966 | G21: 1.364608472 | H21: 0.3195896336 | I21: 0.2222481175 | J21: 6.521176744 | K21: =K20/J20 -> 2.142462544 | L21: =L20/K20 -> -9.963912508
A22: Jóváhagyott osztalék, részesedés | B22: Ft | C22: 143665000 | D22: 287330000 | E22: 0 | F22: 1436650000 | G22: 1436650000 | H22: 744000000 | I22: 0 | J22: 474095000 | K22: 0 | L22: 0
B23: % | C23: 100 | D23: =D22/C22 -> 2 | E23: 0 | G23: 1 | H23: 0.517871437 | I23: 0 | K23: =K22/J22 -> 0 | L23: =L22/K22 -> 
A24: Árbevétel arányos adózott eredmény | C24: 0.05604005272 | D24: 0.124574759 | E24: 0.1235246971 | F24: =F20/F12 -> 0.05169757746 | G24: 0.06057152745 | H24: 0.01652127921 | I24: 0.002931993236 | J24: 0.02238698232 | K24: 0.04394946894 | L24: -0.4485268231
A25: Jegyzett tőke arányos adózott eredmény | C25: 0.127183011 | D25: 0.3084990718 | E25: 0.3097791322 | F25: =F20/F27 -> 0.1390213768 | G25: 0.1897097486 | H25: 0.06062926904 | I25: 0.01347474091 | J25: 0.08787116704 | K25: 0.188260684 | L25: -1.875812985
A26: Saját tőke arányos adózott eredmény | C26: =C20/C28 -> 0.1076670786 | D26: 0.2098974513 | E26: 0.1741088474 | F26: 0.07644579337 | G26: 0.09941445255 | H26: 0.0316252896 | I26: 0.006979603808 | J26: 0.04425734822 | K26: =K20/K28 -> 0.08660760297 | L26: =L20/L28 -> -6.296637877
A27: jegyzett tőke | C27: 14366510000 | D27: 14366510000 | E27: 14366510000 | F27: 14366510000 | G27: 14366510000 | H27: 14366510000 | I27: 14366510000 | J27: 14366510000 | K27: 14366510000 | L27: 14366510000
A28: saját tőke | C28: 16970610000 | D28: 21115335000 | E28: 25561280000 | F28: 26126382000 | G28: 27415199000 | H28: 27542230000 | I28: 27735815000 | J28: 28524122000 | K28: 31228771000 | L28: 4279885000

Sheet Munka2
A1: E. ON Dél-dunántúli Áramszolgáltató Részvénytársaság
C11: 2002. év | D11: 2003. év | E11: 2004. év | F11: 2005. év | G11: 2006. év | H11: 2007. év | I11: 2008. év | J11: 2009. év | K11: 2010. év | L11: 2011. év
A12: Értékesítés nettó árbevétele | B12: Ft | C12: 64473077000 | D12: 68054700000 | E12: 70165552000 | F12: 70434904000 | G12: 79990338000 | H12: 85432442000 | I12: 44262463000 | J12: 46079022000 | K12: 43626183000 | L12: 40858695000
B13: % | C13: 100 | D13: =D12/C12 -> 1.055552227 | E13: 1.031016991 | F13: 1.003838807 | G13: 1.135663335 | H13: 1.068034517 | I13: 0.5180990027 | J13: 1.041040622 | K13: =K12/J12 -> 0.9467688572 | L13: =L12/K12 -> 0.9365635999
A14: ÜZEMI (ÜZLETI) TEVÉKENYSÉG EREDMÉNYE | B14: Ft | C14: 2337095000 | D14: 3127951000 | E14: 3344830000 | F14: 2666393000 | G14: 3254820000 | H14: 6974981000 | I14: 7174133000 | J14: 6980647000 | K14: 8992272000 | L14: 6543643000
B15: % | C15: 100 | D15: =D14/C14 -> 1.338392748 | E15: 1.069335805 | F15: 0.797168466 | G15: 1.220682773 | H15: 2.142969811 | I15: 1.028552336 | J15: 0.9730300512 | K15: =K14/J14 -> 1.288171712 | L15: =L14/K14 -> 0.727696293
A16: SZOKÁSOS VÁLLALKOZÁSI EREDMÉNY | B16: Ft | C16: 2257327000 | D16: 3115232000 | E16: 2361155000 | F16: 1808781000 | G16: 2535928000 | H16: 6253062000 | I16: 6068308000 | J16: 5357459000 | K16: 7579787000 | L16: 4679610000
B17: % | C17: 100 | D17: =D16/C16 -> 1.380053488 | E17: 0.7579387346 | F17: 0.7660577133 | G17: 1.40200942 | H17: 2.465788461 | I17: 0.9704538353 | J17: 0.8828587804 | K17: 1.414810081 | L17: 0.6173801454
A18: ADÓZÁS ELŐTTI EREDMÉNY | B18: Ft | C18: 3217790000 | D18: 3816317000 | E18: 3515935000 | F18: 2902106000 | G18: 3655071000 | H18: 7348962000 | I18: 7087314000 | J18: 6356610000 | K18: 8407964000 | L18: 5446792000
B19: % | C19: 100 | D19: =D18/C18 -> 1.186005613 | E19: 0.9212900815 | F19: 0.8254151456 | G19: 1.259454686 | H19: 2.010620861 | I19: 0.9643966046 | J19: 0.8968997282 | K19: =K18/J18 -> 1.322711949 | L19: =L18/K18 -> 0.6478134302
A20: ADÓZOTT EREDMÉNY | B20: Ft | C20: 2548258000 | D20: 2996434000 | E20: 2899722000 | F20: 2554829000 | G20: 3261590000 | H20: 6089583000 | I20: 5948330000 | J20: 5567132000 | K20: 7437892000 | L20: 5045407000
B21: % | C21: 100 | D21: =D20/C20 -> 1.175875441 | E21: 0.9677243016 | F21: 0.8810599775 | G21: 1.276637301 | H21: 1.867059624 | I21: 0.9768041588 | J21: 0.9359151224 | K21: =K20/J20 -> 1.33603658 | L21: =L20/K20 -> 0.678338298
A22: Jóváhagyott osztalék, részesedés | B22: Ft | C22: 2294424000 | D22: 2979771000 | E22: 2899317000 | F22: 2553664000 | G22: 3259869000 | H22: 6087672000 | I22: 5947623000 | J22: 5566212000 | K22: 7437508000 | L22: 2955933000
B23: % | C23: 100 | D23: =D22/C22 -> 1.298701112 | E23: 0.9729999386 | F23: 0.8807812323 | G23: 1.276545779 | H23: 1.867459091 | I23: 0.9769946541 | J23: 0.9358716919 | K23: =K22/J22 -> 1.336188417 | L23: =L22/K22 -> 0.3974359423
A24: Árbevétel arányos adózott eredmény | C24: 0.03952437387 | D24: 0.0440297878 | E24: 0.04132686079 | F24: =F20/F12 -> 0.03627220107 | G24: 0.04077479958 | H24: 0.07127951464 | I24: 0.1343876865 | J24: 0.1208170607 | K24: 0.1704914684 | L24: 0.1234842914
A25: Jegyzett tőke arányos adózott eredmény | C25: 0.08551858515 | D25: 0.100559204 | E25: 0.09731358551 | F25: =F20/F27 -> 0.08573910545 | G25: 0.1094577402 | H25: 0.2043641273 | I25: 0.1996237295 | J25: 0.1868308672 | K25: 0.2496128729 | L25: 0.1693219714
A26: Saját tőke arányos adózott eredmény | C26: =C20/C28 -> 0.08270709392 | D26: 0.09720067251 | E26: 0.09406221716 | F26: 0.08287132317 | G26: 0.1057966224 | H26: 0.1975053272 | I26: 0.1929196013 | J26: 0.180550985 | K26: =K20/K28 -> 0.2412197164 | L26: =L20/L28 -> 0.1532441167
A27: jegyzett tőke | C27: 29797710000 | D27: 29797710000 | E27: 29797710000 | F27: 29797710000 | G27: 29797710000 | H27: 29797710000 | I27: 29797710000 | J27: 29797710000 | K27: 29797710000 | L27: 29797710000
A28: saját tőke | C28: 30810634000 | D28: 30827297000 | E28: 30827702000 | F28: 30828867000 | G28: 30828867000 | H28: 30832500000 | I28: 30833207000 | J28: 30834127000 | K28: 30834511000 | L28: 32923985000

Sheet Munka3
A1: Dél-magyarországi Áramszolgáltató Nyrt.
C11: 2002. év | D11: 2003. év | E11: 2004. év | F11: 2005. év | G11: 2006. év | H11: 2007. év | I11: 2008. év | J11: 2009. év | K11: 2010. év | L11: 2011. év
A12: Értékesítés nettó árbevétele | B12: Ft | C12: 64863257000 | D12: 75443227000 | E12: 77446927000 | F12: 79857891000 | G12: 87785521000 | H12: 111268000000 | I12: 102467000000 | J12: 92959000000 | K12: 158726000000 | L12: 137338000000
B13: % | C13: 100 | D13: =D12/C12 -> 1.163111914 | E13: 1.026559044 | F13: 1.031130531 | G13: 1.099271718 | H13: 1.267498316 | I13: 0.9209026854 | J13: 0.9072091503 | K13: =K12/J12 -> 1.707483945 | L13: =L12/K12 -> 0.8652520696
A14: ÜZEMI (ÜZLETI) TEVÉKENYSÉG EREDMÉNYE | B14: Ft | C14: 4740576000 | D14: 5331573000 | E14: 6321661000 | F14: 6046294000 | G14: 6677077000 | H14: 10184000000 | I14: 3823000000 | J14: 2575000000 | K14: 1917000000 | L14: 2191000000
B15: % | C15: 100 | D15: =D14/C14 -> 1.124667762 | E15: 1.185702794 | F15: 0.9564407202 | G15: 1.104325559 | H15: 1.525218295 | I15: 0.375392773 | J15: 0.6735547999 | K15: =K14/J14 -> 0.7444660194 | L15: =L14/K14 -> 1.142931664
A16: SZOKÁSOS VÁLLALKOZÁSI EREDMÉNY | B16: Ft | C16: 4633809000 | D16: 5143923000 | E16: 5176379000 | F16: 5791170000 | G16: 6223112000 | H16: 9975000000 | I16: 10170000000 | J16: 12649000000 | K16: 8809000000 | L16: 12483000000
B17: % | C17: 100 | D17: =D16/C16 -> 1.110085245 | E17: 1.006309581 | F17: 1.118768545 | G17: 1.07458631 | H17: 1.602895786 | I17: 1.019548872 | J17: 1.243756146 | K17: =K16/J16 -> 0.6964186892 | L17: =L16/K16 -> 1.417073448
A18: ADÓZÁS ELŐTTI EREDMÉNY | B18: Ft | C18: 5376074000 | D18: 5810517000 | E18: 5918293000 | F18: 6247156000 | G18: 6989050000 | H18: 71261000000 | I18: 10185000000 | J18: 12160000000 | K18: 8864000000 | L18: 12359000000
B19: % | C19: 100 | D19: =D18/C18 -> 1.080810458 | E19: 1.018548436 | F19: 1.055567205 | G19: 1.118757079 | H19: 10.19609246 | I19: 0.1429253028 | J19: 1.193912617 | K19: =K18/J18 -> 0.7289473684 | L19: =L18/K18 -> 1.394291516
A20: ADÓZOTT EREDMÉNY | B20: Ft | C20: 4571441000 | D20: 4954706000 | E20: 5292676000 | F20: 5381924000 | G20: 6192183000 | H20: 70941000000 | I20: 9394000000 | J20: 12098000000 | K20: 8823000000 | L20: 12039000000
B21: % | C21: 100 | D21: =D20/C20 -> 1.083838991 | E21: 1.068211918 | F21: 1.016862547 | G21: 1.150551922 | H21: 11.45654126 | I21: 0.1324198982 | J21: 1.287843304 | K21: =K20/J20 -> 0.7292940982 | L21: =L20/K20 -> 1.36450187
A22: Jóváhagyott osztalék, részesedés | B22: Ft | C22: 4113934000 | D22: 4443493000 | E22: 4739726000 | F22: 4739726000 | G22: 5554366000 | H22: 5602000000 | I22: 6250000000 | J22: 2400000000 | K22: 5400000000 | L22: 6950000000
B23: % | C23: 100 | D23: =D22/C22 -> 1.080107994 | E23: 1.066666697 | F23: 1 | G23: 1.171874914 | H23: 1.008575956 | I23: 1.115672974 | J23: 0.384 | K23: =K22/J22 -> 2.25 | L23: =L22/K22 -> 1.287037037
A24: Árbevétel arányos adózott eredmény | C24: 0.07047812909 | D24: 0.06567462975 | E24: 0.06833939325 | F24: =F20/F12 -> 0.06739376576 | G24: 0.07053763456 | H24: 0.6375687529 | I24: 0.09167829643 | J24: 0.1301433966 | K24: 0.05558635636 | L24: 0.08765964263
A25: Jegyzett tőke arányos adózott eredmény | C25: 0.1234553301 | D25: 0.1338057004 | E25: 0.1429328439 | F25: =F20/F27 -> 0.1453430558 | G25: 0.1672247321 | H25: 1.915817042 | I25: 0.2536922978 | J25: 0.326715927 | K25: 0.2382727052 | L25: 0.3251235518
A26: Saját tőke arányos adózott eredmény | C26: =C20/C28 -> 0.1050001817 | D26: 0.112555509 | E26: 0.1188882653 | F26: 0.1191738747 | G26: 0.1352061584 | H26: 0.6383202714 | I26: 0.08220089079 | J26: 0.1003425481 | K26: =K20/K28 -> 0.07115896443 | L26: =L20/L28 -> 0.0932684635
A27: jegyzett tőke | C27: 37029110000 | D27: 37029110000 | E27: 37029110000 | F27: 37029110000 | G27: 37029110000 | H27: 37029110000 | I27: 37029110000 | J27: 37029110000 | K27: 37029000000 | L27: 37029000000
A28: saját tőke | C28: 43537458000 | D28: 44020111000 | E28: 44518069000 | F28: 45160267000 | G28: 45798084000 | H28: 111137000000 | I28: 114281000000 | J28: 120567000000 | K28: 123990000000 | L28: 129079000000

Sheet Munka4
A1: Dunamenti Erőmű Részvénytársaság
C11: 2002. év | D11: 2003. év | E11: 2004. év | F11: 2005. év | G11: 2006. év | H11: 2007. év | I11: 2008. év | J11: 2009. év | K11: 2010. év | L11: 2011. év
A12: Értékesítés nettó árbevétele | B12: Ft | C12: 72086771000 | D12: 77462114000 | E12: 72801752000 | F12: 78585425000 | G12: 85705326000 | H12: 98678940000 | I12: 94174176000 | J12: 53858906000 | K12: 97816724000 | L12: 58782385000
B13: % | C13: 100 | D13: =D12/C12 -> 1.074567676 | E13: 0.9398368859 | F13: 1.079444146 | G13: 1.090600783 | H13: 1.151374653 | I13: 0.9543492867 | J13: 0.5719073772 | K13: =K12/J12 -> 1.816166188 | L13: =L12/K12 -> 0.6009441187
A14: ÜZEMI (ÜZLETI) TEVÉKENYSÉG EREDMÉNYE | B14: Ft | C14: 10945512000 | D14: 9880179000 | E14: 9790124000 | F14: 12682039000 | G14: 12487384000 | H14: 8031569000 | I14: 4943523000 | J14: 4271200000 | K14: -485190000 | L14: -324096000
B15: % | C15: 100 | D15: =D14/C14 -> 0.9026694229 | E15: 0.9908852866 | F15: 1.295391049 | G15: 0.9846511275 | H15: 0.6431746633 | I15: 0.6155114897 | J15: 0.8639992168 | K15: =K14/J14 -> -0.1135957108 | L15: =L14/K14 -> 0.6679774934
A16: SZOKÁSOS VÁLLALKOZÁSI EREDMÉNY | B16: Ft | C16: 12642724000 | D16: 12175096000 | E16: 12555054000 | F16: 14182069000 | G16: 13578356000 | H16: 10427521000 | I16: 7773400000 | J16: 670021000 | K16: 1204503000 | L16: -3188006000
B17: % | C17: 100 | D17: =D16/C16 -> 0.9630120851 | E17: 1.031207803 | F17: 1.129590442 | G17: 0.9574312465 | H17: 0.7679516578 | I17: 0.7454696087 | J17: 0.08619407209 | K17: =K16/J16 -> 1.797709326 | L17: =L16/K16 -> -2.646739776
A18: ADÓZÁS ELŐTTI EREDMÉNY | B18: Ft | C18: 12642724000 | D18: 12176716000 | E18: 12554316000 | F18: 14182069000 | G18: 13578356000 | H18: 10427521000 | I18: 7773400000 | J18: 670021000 | K18: 1204503000 | L18: -3188006000
B19: % | C19: 100 | D19: =D18/C18 -> 0.963140222 | E19: 1.031010003 | F19: 1.129656845 | G19: 0.9574312465 | H19: 0.7679516578 | I19: 0.7454696087 | J19: 0.08619407209 | K19: =K18/J18 -> 1.797709326 | L19: =L18/K18 -> -2.646739776
A20: ADÓZOTT EREDMÉNY | B20: Ft | C20: 11976563000 | D20: 10019339000 | E20: 10847320000 | F20: 12179372000 | G20: 11052683000 | H20: 8260087000 | I20: 6295333000 | J20: 585380000 | K20: -480134000 | L20: -3188006000
B21: % | C21: 100 | D21: =D20/C20 -> 0.8365788248 | E21: 1.082638286 | F21: 1.122800102 | G21: 0.9074920283 | H21: 0.7473377279 | I21: 0.7621388249 | J21: 0.09298634401 | K21: =K20/J20 -> -0.8202090949 | L21: =L20/K20 -> 6.639825549
A22: Jóváhagyott osztalék, részesedés | B22: Ft | C22: 0 | D22: 22272041000 | E22: 11136020000 | F22: 0 | G22: 14356074000 | H22: 8260087000 | I22: 6295333000 | J22: 585380000 | K22: 0 | L22: 0
B23: % | C23: 100 | D23: =D22/C22 ->  | E23: 0.4999999776 | F23: 0 | H23: 0.575372278 | I23: 0.7621388249 | J23: 0.09298634401 | K23: =K22/J22 -> 0 | L23: =L22/K22 -> 
A24: Árbevétel arányos adózott eredmény | C24: 0.1661409276 | D24: 0.1293450241 | E24: 0.1489980626 | F24: =F20/F12 -> 0.1549825811 | G24: 0.1289614487 | H24: 0.08370668554 | I24: 0.06684776302 | J24: 0.01086876885 | K24: -0.004908506239 | L24: -0.05423403627
A25: Jegyzett tőke arányos adózott eredmény | C25: 0.3570592355 | D25: 0.2987081956 | E25: 0.3233929289 | F25: =F20/F27 -> 0.3631056134 | G25: 0.3295154496 | H25: 0.2462593274 | I25: 0.1876837944 | J25: 0.01745202987 | K25: -0.01431431363 | L25: -0.09504454534
A26: Saját tőke arányos adózott eredmény | C26: =C20/C28 -> 0.2393021473 | D26: 0.2650957587 | E26: 0.2892119757 | F26: 0.245127621 | G26: 0.3135830494 | H26: 0.189858618 | I26: 0.1264076134 | J26: 0.01161762613 | K26: =K20/K28 -> -9.620555762 | L26: =L20/L28 -> -68.23775891
A27: jegyzett tőke | C27: 33542230000 | D27: 33542230000 | E27: 33542230000 | F27: 33542230000 | G27: 33542230000 | H27: 33542230000 | I27: 33542230000 | J27: 33542230000 | K27: 33542230000 | L27: 33542230000
A28: saját tőke | C28: 50047871000 | D28: 37795169000 | E28: 37506469000 | F28: 49685841000 | G28: 35246430000 | H28: 43506516000 | I28: 49801850000 | J28: 50387230000 | K28: 49907096 | L28: 46719090

Sheet Munka5
A1: E. ON Észak-dunántúli Áramszolgáltató Részvénytársaság
C11: 2002. év | D11: 2003. év | E11: 2004. év | F11: 2005. év | G11: 2006. év | H11: 2007. év | I11: 2008. év | J11: 2009. év | K11: 2010. év | L11: 2011. év
A12: Értékesítés nettó árbevétele | B12: Ft | C12: 112351033000 | D12: 119821000000 | E12: 119184031000 | F12: 115861658000 | G12: 129782463000 | H12: 146548154000 | I12: 72771378000 | J12: 65871855000 | K12: 68372073000 | L12: 67004868000
B13: % | C13: 100 | D13: =D12/C12 -> 1.066487746 | E13: 0.9946839953 | F13: 0.9721240088 | G13: 1.120150231 | H13: 1.129183024 | I13: 0.496569735 | J13: 0.9051890566 | K13: =K12/J12 -> 1.037955786 | L13: =L12/K12 -> 0.9800034584
A14: ÜZEMI (ÜZLETI) TEVÉKENYSÉG EREDMÉNYE | B14: Ft | C14: 5734040000 | D14: 6381722000 | E14: 8255922000 | F14: 6631616000 | G14: 4609069000 | H14: 8771601000 | I14: 9542838000 | J14: 991623000 | K14: 6744694000 | L14: 3692509000
B15: % | C15: 100 | D15: =D14/C14 -> 1.112953868 | E15: 1.293682489 | F15: 0.8032556509 | G15: 0.695014458 | H15: 1.903117745 | I15: 1.087924314 | J15: 0.1039127983 | K15: =K14/J14 -> 6.801671603 | L15: =L14/K14 -> 0.5474687213
A16: SZOKÁSOS VÁLLALKOZÁSI EREDMÉNY | B16: Ft | C16: 5584816000 | D16: 6782475000 | E16: 8275045000 | F16: 5896517000 | G16: 4804451000 | H16: 8909616000 | I16: 9454906000 | J16: 20720000 | K16: 5641078000 | L16: 1978321000
B17: % | C17: 100 | D17: =D16/C16 -> 1.214449142 | E17: 1.220062735 | F17: 0.7125661552 | G17: 0.8147947339 | H17: 1.854450384 | I17: 1.061202413 | J17: 0.002191454891 | K17: =K16/J16 -> 272.2527992 | L17: =L16/K16 -> 0.350699104
A18: ADÓZÁS ELŐTTI EREDMÉNY | B18: Ft | C18: 6491129000 | D18: 8047612000 | E18: 10097487000 | F18: 8103862000 | G18: 6947729000 | H18: 10939708000 | I18: 11370827000 | J18: 1430966000 | K18: 7228826000 | L18: 3261579000
B19: % | C19: 100 | D19: =D18/C18 -> 1.239786176 | E19: 1.254718418 | F19: 0.8025622613 | G19: 0.8573355519 | H19: 1.574573217 | I19: 1.039408639 | J19: 0.1258453761 | K19: =K18/J18 -> 5.051710523 | L19: =L18/K18 -> 0.4511906913
A20: ADÓZOTT EREDMÉNY | B20: Ft | C20: 5171170000 | D20: 6261871000 | E20: 8299830000 | F20: 6837681000 | G20: 5715486000 | H20: 9003746000 | I20: 9649249000 | J20: 1334141000 | K20: 7013499000 | L20: 3226605000
B21: % | C21: 100 | D21: =D20/C20 -> 1.210919579 | E21: 1.325455283 | F21: 0.8238338617 | G21: 0.8358807613 | H21: 1.575324653 | I21: 1.071692715 | J21: 0.1382637136 | K21: =K20/J20 -> 5.256939859 | L21: =L20/K20 -> 0.4600563856
A22: Jóváhagyott osztalék, részesedés | B22: Ft | C22: 4688231000 | D22: 6235347000 | E22: 8298169000 | F22: 6835441000 | G22: 5714954000 | H22: 9001404000 | I22: 9648379000 | J22: 1331458000 | K22: 7008905000 | L22: 7355834000
B23: % | C23: 100 | D23: =D22/C22 -> 1.329999951 | E23: 1.330827138 | F23: 0.823728825 | G23: 0.836076853 | H23: 1.575061497 | I23: 1.071874899 | J23: 0.1379981031 | K23: =K22/J22 -> 5.264082682 | L23: =L22/K22 -> 1.049498317
A24: Árbevétel arányos adózott eredmény | C24: 0.04602690213 | D24: 0.05226021315 | E24: 0.06963877568 | F24: =F20/F12 -> 0.05901590844 | G24: 0.04403897004 | H24: 0.06143882235 | I24: 0.1325967608 | J24: 0.02025358175 | K24: 0.1025784168 | L24: 0.04815478481
A25: Jegyzett tőke arányos adózott eredmény | C25: 0.1103010922 | D25: 0.1335657522 | E25: 0.1770354319 | F25: =F20/F27 -> 0.1458477835 | G25: 0.1219113563 | H25: 0.1920499651 | I25: 0.2058185486 | J25: 0.02845723686 | K25: 0.1495979827 | L25: 0.0688235072
A26: Saját tőke arányos adózott eredmény | C26: =C20/C28 -> 0.08961649491 | D26: 0.1084685095 | E26: 0.1437660226 | F26: 0.1184347222 | G26: 0.09899639356 | H26: 0.1559451361 | I26: 0.1671227481 | J26: 0.02310593807 | K26: =K20/K28 -> 0.1216217552 | L26: =L20/L28 -> 0.06026840562
A27: jegyzett tőke | C27: 46882310000 | D27: 46882310000 | E27: 46882310000 | F27: 46882310000 | G27: 46882310000 | H27: 46882310000 | I27: 46882310000 | J27: 46882310000 | K27: 46882310000 | L27: 46882310000
A28: saját tőke | C28: 57703328000 | D28: 57729852000 | E28: 57731513000 | F28: 57733753000 | G28: 57734285000 | H28: 57736626000 | I28: 57737496000 | J28: 57740179000 | K28: 57666484000 | L28: 53537255000

Sheet Munka6
A1: Budapesti Elektromos Művek Zrt.
C11: 2002. év | D11: 2003. év | E11: 2004. év | F11: 2005. év | G11: 2006. év | H11: 2007. év | I11: 2008. év | J11: 2009. év | K11: 2010. év | L11: 2011. év
A12: Értékesítés nettó árbevétele | B12: Ft | C12: 161229000000 | D12: 182861000000 | E12: 190903000000 | F12: 196654000000 | G12: 220444000000 | H12: 272324000000 | I12: 270525000000 | J12: 254081000000 | K12: 228856000000 | L12: 207067000000
B13: % | C13: 100 | D13: =D12/C12 -> 1.134169411 | E13: 1.04397876 | F13: 1.030125247 | G13: 1.120973893 | H13: 1.235343216 | I13: 0.9933938984 | J13: 0.9392144903 | K13: =K12/J12 -> 0.9007206363 | L13: =L12/K12 -> 0.9047916594
A14: ÜZEMI (ÜZLETI) TEVÉKENYSÉG EREDMÉNYE | B14: Ft | C14: 13029000000 | D14: 15659000000 | E14: 18887000000 | F14: 19529000000 | G14: 18666000000 | H14: 779000000 | I14: 10511000000 | J14: 2406000000 | K14: -3887000000 | L14: -2061000000
B15: % | C15: 100 | D15: =D14/C14 -> 1.201857395 | E15: 1.206143432 | F15: 1.033991634 | G15: 0.9558093092 | H15: 0.04173363334 | I15: 13.49293967 | J15: 0.2289030539 | K15: =K14/J14 -> -1.615544472 | L15: =L14/K14 -> 0.5302289684
A16: SZOKÁSOS VÁLLALKOZÁSI EREDMÉNY | B16: Ft | C16: 11966000000 | D16: 15506000000 | E16: 17668000000 | F16: 19729000000 | G16: 18685000000 | H16: -38000000 | I16: 17284000000 | J16: 10027000000 | K16: 7483000000 | L16: 11576000000
B17: % | C17: 100 | D17: =D16/C16 -> 1.295838208 | E17: 1.139429898 | F17: 1.116651573 | G17: 0.9470829743 | H17: -0.002033716885 | I17: -454.8421053 | J17: 0.5801319139 | K17: =K16/J16 -> 0.7462850304 | L17: =L16/K16 -> 1.546973139
A18: ADÓZÁS ELŐTTI EREDMÉNY | B18: Ft | C18: 11688000000 | D18: 15185000000 | E18: 17402000000 | F18: 19327000000 | G18: 18105000000 | H18: 193154000000 | I18: 17204000000 | J18: 7357000000 | K18: 7400000000 | L18: 11478000000
B19: % | C19: 100 | D19: =D18/C18 -> 1.299195756 | E19: 1.145999341 | F19: 1.110619469 | G19: 0.936772391 | H19: 10.6685446 | I19: 0.08906882591 | J19: 0.4276331086 | K19: =K18/J18 -> 1.005844774 | L19: =L18/K18 -> 1.551081081
A20: ADÓZOTT EREDMÉNY | B20: Ft | C20: 9588000000 | D20: 11908000000 | E20: 14575000000 | F20: 16513000000 | G20: 15474000000 | H20: 193155000000 | I20: 15215000000 | J20: 7357000000 | K20: 7477000000 | L20: 11478000000
B21: % | C21: 100 | D21: =D20/C20 -> 1.241969128 | E21: 1.223967081 | F21: 1.13296741 | G21: 0.9370798765 | H21: 12.48255138 | I21: 0.07877093526 | J21: 0.4835359842 | K21: =K20/J20 -> 1.016310996 | L21: =L20/K20 -> 1.535107664
A22: Jóváhagyott osztalék, részesedés | B22: Ft | C22: 9112000000 | D22: 11541000000 | E22: 14275000000 | F22: 15794000000 | G22: 15186000000 | H22: 10934000000 | I22: 12756000000 | J22: 12756000000 | K22: 10326000000 | L22: 10326000000
B23: % | C23: 100 | D23: =D22/C22 -> 1.266571554 | E23: 1.23689455 | F23: 1.106409807 | G23: 0.9615043687 | H23: 0.720005268 | I23: 1.166636181 | J23: 1 | K23: =K22/J22 -> 0.8095014111 | L23: =L22/K22 -> 1
A24: Árbevétel arányos adózott eredmény | C24: =C20/C12 -> 0.05946820981 | D24: 0.06512050136 | E24: 0.07634767395 | F24: 0.08396981501 | G24: 0.07019469797 | H24: 0.7092837943 | I24: 0.05624249145 | J24: 0.02895533314 | K24: =K20/K12 -> 0.03267119936 | L24: =L20/L12 -> 0.05543133382
A25: Jegyzett tőke arányos adózott eredmény | C25: =C20/C27 -> 0.1578427499 | D25: 0.1960358225 | E25: 0.2399413934 | F25: 0.271845779 | G25: 0.254741209 | H25: 3.179820229 | I25: 0.2504774134 | J25: 0.1211148426 | K25: =K20/K27 -> 0.1230903464 | L25: =L20/L27 -> 0.188956934
A26: Saját tőke arányos adózott eredmény | C26: =C20/C28 -> 0.1374269006 | D26: 0.1697868397 | E26: 0.2069283737 | F26: 0.2320740928 | G26: 0.2165952801 | H26: 0.7614630435 | I26: 0.05940528342 | J26: 0.02934313964 | K26: =K20/K28 -> 0.03016451907 | L26: =L20/L28 -> 0.04609157277
A27: jegyzett tőke | C27: 60744000000 | D27: 60744000000 | E27: 60744000000 | F27: 60744000000 | G27: 60744000000 | H27: 60744000000 | I27: 60744000000 | J27: 60744000000 | K27: 60744000000 | L27: 60744000000
A28: saját tőke | C28: 69768000000 | D28: 70135000000 | E28: 70435000000 | F28: 71154000000 | G28: 71442000000 | H28: 253663000000 | I28: 256122000000 | J28: 250723000000 | K28: 247874000000 | L28: 249026000000

Sheet Munka7
A1: Észak-magyarországi Áramszolgáltató Részvénytársaság
C11: 2002. év | D11: 2003. év | E11: 2004. év | F11: 2005. év | G11: 2006. év | H11: 2007. év | I11: 2008. év | J11: 2009. év | K11: 2010. év | L11: 2011. év
A12: Értékesítés nettó árbevétele | B12: Ft | C12: 74700987000 | D12: 73606549000 | E12: 75205742000 | F12: 79104182000 | G12: 95349579000 | H12: 98030000000 | I12: 114290000000 | J12: 92364000000 | K12: 85405000000 | L12: 78494000000
B13: % | C13: 100 | D13: =D12/C12 -> 0.9853490825 | E13: 1.021726233 | F13: 1.051836999 | G13: 1.205367107 | H13: 1.028111514 | I13: 1.165867592 | J13: 0.8081546942 | K13: =K12/J12 -> 0.9246567927 | L13: =L12/K12 -> 0.9190796792
A14: ÜZEMI (ÜZLETI) TEVÉKENYSÉG EREDMÉNYE | B14: Ft | C14: 1172289000 | D14: 1174254000 | E14: 3894153000 | F14: 4615492000 | G14: 3887631000 | H14: -337000000 | I14: 5748000000 | J14: -96000000 | K14: -779000000 | L14: -2593000000
B15: % | C15: 100 | D15: =D14/C14 -> 1.001676208 | E15: 3.31627825 | F15: 1.18523643 | G15: 0.8423004525 | H15: -0.0866851818 | I15: -17.05637982 | J15: -0.01670146138 | K15: =K14/J14 -> 8.114583333 | L15: =L14/K14 -> 3.328626444
A16: SZOKÁSOS VÁLLALKOZÁSI EREDMÉNY | B16: Ft | C16: 1459844000 | D16: 775648000 | E16: 2999544000 | F16: 3977277000 | G16: 4914146000 | H16: 392000000 | I16: 7932000000 | J16: 775000000 | K16: 5630000000 | L16: 6685000000
B17: % | C17: 100 | D17: =D16/C16 -> 0.5313225249 | E17: 3.867145922 | F17: 1.325960546 | G17: 1.235555381 | H17: 0.07976970973 | I17: 20.23469388 | J17: 0.09770549672 | K17: =K16/J16 -> 7.264516129 | L17: =L16/K16 -> 1.187388988
A18: ADÓZÁS ELŐTTI EREDMÉNY | B18: Ft | C18: 1510752000 | D18: 729869000 | E18: 2959572000 | F18: 3302511000 | G18: 4886354000 | H18: 58118000000 | I18: 7874000000 | J18: 576000000 | K18: 5506000000 | L18: 6644000000
B19: % | C19: 100 | D19: =D18/C18 -> 0.4831163553 | E19: 4.054935886 | F19: 1.115874525 | G19: 1.479587502 | H19: 11.89393974 | I19: 0.1354829829 | J19: 0.0731521463 | K19: =K18/J18 -> 9.559027778 | L19: =L18/K18 -> 1.206683618
A20: ADÓZOTT EREDMÉNY | B20: Ft | C20: 1239333000 | D20: 518799000 | E20: 2613180000 | F20: 2626459000 | G20: 4452562000 | H20: 58120000000 | I20: 6931000000 | J20: 576000000 | K20: 5505000000 | L20: 6644000000
B21: % | C21: 100 | D21: =D20/C20 -> 0.4186114628 | E21: 5.03697964 | F21: 1.005081548 | G21: 1.695271847 | H21: 13.05315906 | I21: 0.1192532691 | J21: 0.08310489107 | K21: =K20/J20 -> 9.557291667 | L21: =L20/K20 -> 1.206902816
A22: Jóváhagyott osztalék, részesedés | B22: Ft | C22: 1220168000 | D22: 0 | E22: 0 | F22: 1677732000 | G22: 3965547000 | H22: 5186000000 | I22: 5491000000 | J22: 4881000000 | K22: 4271000000 | L22: 4271000000
B23: % | C23: 100 | D23: =D22/C22 -> 0 | G23: 2.363635551 | H23: 1.307764099 | I23: 1.058812187 | J23: 0.888909124 | K23: =K22/J22 -> 0.8750256095 | L23: =L22/K22 -> 1
A24: Árbevétel arányos adózott eredmény | C24: 0.016590584 | D24: 0.007048272294 | E24: 0.03474708088 | F24: =F20/F12 -> 0.0332025303 | G24: 0.04669723817 | H24: 0.5928797307 | I24: 0.06064397585 | J24: 0.00623619592 | K24: 0.06445758445 | L24: 0.08464341224
A25: Jegyzett tőke arányos adózott eredmény | C25: 0.04062826082 | D25: 0.01700745569 | E25: 0.08566620804 | F25: =F20/F27 -> 0.086101525 | G25: 0.1459654913 | H25: 1.905310775 | I25: 0.2272145386 | J25: 0.01888263948 | K25: 0.1804681353 | L25: 0.2178075007
A26: Saját tőke arányos adózott eredmény | C26: =C20/C28 -> 0.04033328406 | D26: 0.0166036396 | E26: 0.07717765773 | F26: 0.07545559631 | G26: 0.1261526873 | H26: 0.6587403235 | I26: 0.07729538637 | J26: 0.00674757509 | K26: =K20/K28 -> 0.06356959745 | L26: =L20/L28 -> 0.07467601803
A27: jegyzett tőke | C27: 30504210000 | D27: 30504210000 | E27: 30504210000 | F27: 30504210000 | G27: 30504210000 | H27: 30504210000 | I27: 30504210000 | J27: 30504210000 | K27: 30504000000 | L27: 30504000000
A28: saját tőke | C28: 30727302000 | D28: 31246101000 | E28: 33859281000 | F28: 34808008000 | G28: 35295023000 | H28: 88229000000 | I28: 89669000000 | J28: 85364000000 | K28: 86598000000 | L28: 88971000000

Sheet Munka8
A1: MAVIR Magyar Villamosenergia-ipari Rendszerirányító Zártkörűen Működő Részvénytársaság
C11: 2002. év | D11: 2003. év | E11: 2004. év | F11: 2005. év | G11: 2006. év | H11: 2007. év | I11: 2008. év | J11: 2009. év | K11: 2010. év | L11: 2011. év
A12: Értékesítés nettó árbevétele | B12: Ft | C12: 3746676000 | D12: 50268134000 | E12: 40594038000 | F12: 39644963000 | G12: 80767000000 | H12: 92232000000 | I12: 105019000000 | J12: 116292000000 | K12: 123252000000 | L12: 130038000000
B13: % | C13: 100 | D13: =D12/C12 -> 13.41672832 | E13: 0.8075501271 | F13: 0.9766203352 | G13: 2.037257545 | H13: 1.14195154 | I13: 1.138639518 | J13: 1.107342481 | K13: =K12/J12 -> 1.059849345 | L13: =L12/K12 -> 1.05505793
A14: ÜZEMI (ÜZLETI) TEVÉKENYSÉG EREDMÉNYE | B14: Ft | C14: -113117000 | D14: 34631000 | E14: 341306000 | F14: -777297000 | G14: 9658000000 | H14: 11077000000 | I14: 10904000000 | J14: 10503000000 | K14: 9490000000 | L14: 13014000000
B15: % | C15: 100 | D15: =D14/C14 -> -0.3061520373 | E15: 9.855505183 | F15: -2.277419676 | G15: -12.42510906 | H15: 1.146924829 | I15: 0.9843820529 | J15: 0.9632245048 | K15: =K14/J14 -> 0.9035513663 | L15: =L14/K14 -> 1.371338251
A16: SZOKÁSOS VÁLLALKOZÁSI EREDMÉNY | B16: Ft | C16: -117469000 | D16: 144533000 | E16: 770533000 | F16: -286154000 | G16: 7734000000 | H16: 10522000000 | I16: 10995000000 | J16: 10492000000 | K16: 8425000000 | L16: 6853000000
B17: % | C17: 100 | D17: =D16/C16 -> -1.230392699 | E17: 5.331190801 | F17: -0.3713715052 | G17: -27.02740482 | H17: 1.360486165 | I17: 1.044953431 | J17: 0.9542519327 | K17: =K16/J16 -> 0.8029927564 | L17: =L16/K16 -> 0.8134124629
A18: ADÓZÁS ELŐTTI EREDMÉNY | B18: Ft | C18: -114469000 | D18: 140110000 | E18: 759493000 | F18: -304414000 | G18: 7784000000 | H18: 10554000000 | I18: 11081000000 | J18: 10504000000 | K18: 8425000000 | L18: 6785000000
B19: % | C19: 100 | D19: =D18/C18 -> -1.223999511 | E19: 5.420690886 | F19: -0.4008121207 | G19: -25.57044026 | H19: 1.355858171 | I19: 1.049933674 | J19: 0.9479288873 | K19: =K18/J18 -> 0.8020753998 | L19: =L18/K18 -> 0.8053412463
A20: ADÓZOTT EREDMÉNY | B20: Ft | C20: -114469000 | D20: 140110000 | E20: 652009000 | F20: -304414000 | G20: 7681000000 | H20: 8800000000 | I20: 8232000000 | J20: 7872000000 | K20: 5949000000 | L20: 5123000000
B21: % | C21: 100 | D21: =D20/C20 -> -1.223999511 | E21: 4.653550782 | F21: -0.4668861933 | G21: -25.23208525 | H21: 1.145684156 | I21: 0.9354545455 | J21: 0.9562682216 | K21: =K20/J20 -> 0.7557164634 | L21: =L20/K20 -> 0.861153135
A22: Jóváhagyott osztalék, részesedés | B22: Ft | C22: 0 | D22: 0 | E22: 100000000 | F22: 0 | G22: 0 | H22: 8800000000 | I22: 8232000000 | J22: 7872000000 | K22: 5834000000 | L22: 5008000000
B23: % | C23: 100 | D23: =D22/C22 ->  | F23: 0 | I23: 0.9354545455 | J23: 0.9562682216 | K23: =K22/J22 -> 0.7411077236 | L23: =L22/K22 -> 0.858416181
A24: Árbevétel arányos adózott eredmény | C24: -0.03055214809 | D24: 0.002787252855 | E24: 0.01606169359 | F24: =F20/F12 -> -0.007678503824 | G24: 0.09510072183 | H24: 0.09541157082 | I24: 0.0783858159 | J24: 0.06769167269 | K24: 0.04826696524 | L24: 0.0393961765
A25: Jegyzett tőke arányos adózott eredmény | C25: -0.1818093741 | D25: 0.2225345849 | E25: 1.035575991 | F25: =F20/F27 -> -0.4834961325 | G25: 0.05435836465 | H25: 0.06227751711 | I25: 0.05825778646 | J25: 0.05571006985 | K25: 0.04210101696 | L25: 0.03625542274
A26: Saját tőke arányos adózott eredmény | C26: =C20/C28 -> -0.229190568 | D26: 0.2190724873 | E26: 0.547185725 | F26: -0.3431354646 | G26: 0.03513016593 | H26: 0.0400256528 | I26: 0.03653746288 | J26: 0.03274120226 | K26: =K20/K28 -> 0.02230529268 | L26: =L20/L28 -> 0.01843601555
A27: jegyzett tőke | F27: 629610000 | G27: 141303000000 | H27: 141303000000 | I27: 141303000000 | J27: 141303000000 | K27: 141303000000 | L27: 141303000000
A28: saját tőke | C28: 499449000 | D28: 639560000 | E28: 1191568000 | F28: 887154000 | G28: 218644000000 | H28: 219859000000 | I28: 225303000000 | J28: 240431000000 | K28: 266708000000 | L28: 277880000000

Sheet Munka9
A1: Mátrai Erőmű Részvénytársaság
C11: 2002. év | D11: 2003. év | E11: 2004. év | F11: 2005. év | G11: 2006. év | H11: 2007. év | I11: 2008. év | J11: 2009. év | K11: 2010. év | L11: 2011. év
A12: Értékesítés nettó árbevétele | B12: Ft | C12: 47535785000 | D12: 49934577000 | E12: 49555872000 | F12: 59129063000 | G12: 59914030000 | H12: 69670768000 | I12: 86596663000 | J12: 95906966000 | K12: 95728000000 | L12: 98353000000
B13: % | C13: 100 | D13: =D12/C12 -> 1.050462867 | E13: 0.9924159766 | F13: 1.193179751 | G13: 1.013275485 | H13: 1.162845631 | I13: 1.242941128 | J13: 1.107513415 | K13: =K12/J12 -> 0.9981339624 | L13: =L12/K12 -> 1.027421444
A14: ÜZEMI (ÜZLETI) TEVÉKENYSÉG EREDMÉNYE | B14: Ft | C14: 7509553000 | D14: 8871981000 | E14: 9814067000 | F14: 10277101000 | G14: 11782900000 | H14: 14043053000 | I14: 15214410000 | J14: 26319263000 | K14: 22244000000 | L14: 22011000000
B15: % | C15: 100 | D15: =D14/C14 -> 1.181425978 | E15: 1.106186657 | F15: 1.047180644 | G15: 1.146519821 | H15: 1.191816361 | I15: 1.083411848 | J15: 1.729890479 | K15: =K14/J14 -> 0.8451604439 | L15: =L14/K14 -> 0.9895252652
A16: SZOKÁSOS VÁLLALKOZÁSI EREDMÉNY | B16: Ft | C16: 5954612000 | D16: 7129817000 | E16: 8146716000 | F16: 9278643000 | G16: 10681932000 | H16: 12650596000 | I16: 14667251000 | J16: 25721552000 | K16: 22303000000 | L16: 23736000000
B17: % | C17: 100 | D17: =D16/C16 -> 1.197360466 | E17: 1.142626241 | F17: 1.138942735 | G17: 1.151238602 | H17: 1.184298496 | I17: 1.159411857 | J17: 1.753672314 | K17: =K16/J16 -> 0.8670938674 | L17: =L16/K16 -> 1.064251446
A18: ADÓZÁS ELŐTTI EREDMÉNY | B18: Ft | C18: 5875173000 | D18: 7046078000 | E18: 8081502000 | F18: 9222494000 | G18: 10614267000 | H18: 12578704000 | I18: 14596389000 | J18: 25363368000 | K18: 22319000000 | L18: 23657000000
B19: % | C19: 100 | D19: =D18/C18 -> 1.19929711 | E19: 1.146950403 | F19: 1.141185636 | G19: 1.150910697 | H19: 1.185075145 | I19: 1.16040484 | J19: 1.737646756 | K19: =K18/J18 -> 0.8799698841 | L19: =L18/K18 -> 1.059948922
A20: ADÓZOTT EREDMÉNY | B20: Ft | C20: 5680225000 | D20: 7046078000 | E20: 7469327000 | F20: 8517252000 | G20: 9568337000 | H20: 11809511000 | I20: 13617606000 | J20: 21601173000 | K20: 19811000000 | L20: 19124000000
B21: % | C21: 100 | D21: =D20/C20 -> 1.240457552 | E21: 1.060068736 | F21: 1.140297111 | G21: 1.123406587 | H21: 1.234228163 | I21: 1.153104985 | J21: 1.586268027 | K21: =K20/J20 -> 0.9171261209 | L21: =L20/K20 -> 0.9653222957
A22: Jóváhagyott osztalék, részesedés | B22: Ft | C22: 7000000000 | D22: 6500000000 | E22: 6500000000 | F22: 7500000000 | G22: 7500000000 | H22: 7500000000 | I22: 0 | J22: 10000000000 | K22: 10000000000 | L22: 10000000000
B23: % | C23: 100 | D23: =D22/C22 -> 0.9285714286 | E23: 1 | F23: 1.153846154 | G23: 1 | H23: 1 | I23: 0 | K23: =K22/J22 -> 1 | L23: =L22/K22 -> 1
A24: Árbevétel arányos adózott eredmény | C24: 0.1194936615 | D24: 0.1411061918 | E24: 0.1507253671 | F24: =F20/F12 -> 0.1440451035 | G24: 0.1597011084 | H24: 0.1695045331 | I24: 0.157253242 | J24: 0.2252304906 | K24: 0.2069509443 | L24: 0.1944424674
A25: Jegyzett tőke arányos adózott eredmény | C25: 0.1658671002 | D25: 0.2057510971 | E25: 0.2181103054 | F25: =F20/F27 -> 0.2487105512 | G25: 0.2794030715 | H25: 0.3448471397 | I25: 0.3976449557 | J25: 0.6307714792 | K25: 0.5784909186 | L25: 0.5584301816
A26: Saját tőke arányos adózott eredmény | C26: =C20/C28 -> 0.1355580924 | D26: 0.1659908453 | E26: 0.1720332757 | F26: 0.1916781598 | G26: 0.2057551614 | H26: 0.2324111268 | I26: 0.2113536578 | J26: 0.2841070879 | K26: =K20/K28 -> 0.230781776 | L26: =L20/L28 -> 0.2013752145
A27: jegyzett tőke | F27: 34245640000 | G27: 34245640000 | H27: 34245640000 | I27: 34245640000 | J27: 34245640000 | K27: 34246000000 | L27: 34246000000
A28: saját tőke | C28: 41902515000 | D28: 42448594000 | E28: 43417920000 | F28: 44435172000 | G28: 46503509000 | H28: 50813019000 | I28: 64430425000 | J28: 76031799000 | K28: 85843000000 | L28: 94967000000

Sheet Munka10
A1: Magyar Villamos Művek Zártkörűen Működő Részvénytársaság
C11: 2002. év | D11: 2003. év | E11: 2004. év | F11: 2005. év | G11: 2006. év | H11: 2007. év | I11: 2008. év | J11: 2009. év | K11: 2010. év | L11: 2011. év
A12: Értékesítés nettó árbevétele | B12: Ft | C12: 389027000000 | D12: 396221000000 | E12: 379775000000 | F12: 400271000000 | G12: 224748000000 | H12: 14336000000 | I12: 13240000000 | J12: 10508000000 | K12: 10706000000 | L12: 12886000000
B13: % | C13: 100 | D13: =D12/C12 -> 1.01849229 | E13: 0.9584928613 | F13: 1.053968797 | G13: 0.5614895908 | H13: 0.06378699699 | I13: 0.9235491071 | J13: 0.7936555891 | K13: =K12/J12 -> 1.018842786 | L13: =L12/K12 -> 1.203624136
A14: ÜZEMI (ÜZLETI) TEVÉKENYSÉG EREDMÉNYE | B14: Ft | C14: -38183000000 | D14: -3263000000 | E14: 2194000000 | F14: -2242000000 | G14: -5341000000 | H14: 1268000000 | I14: -2422000000 | J14: -16982000000 | K14: -11830000000 | L14: -3306000000
B15: % | C15: 100 | D15: =D14/C14 -> 0.08545687872 | E15: -0.6723873736 | F15: -1.021877849 | G15: 2.382247993 | H15: -0.237408725 | I15: -1.910094637 | J15: 7.011560694 | K15: =K14/J14 -> 0.6966199505 | L15: =L14/K14 -> 0.2794590025
A16: SZOKÁSOS VÁLLALKOZÁSI EREDMÉNY | B16: Ft | C16: -30784000000 | D16: -1232000000 | E16: 9650000000 | F16: 460000000 | G16: 10511000000 | H16: 32011000000 | I16: 39599000000 | J16: 36364000000 | K16: 28134000000 | L16: 36097000000
B17: % | C17: 100 | D17: =D16/C16 -> 0.04002079002 | E17: -7.832792208 | F17: 0.04766839378 | G17: 22.85 | H17: 3.045476168 | I17: 1.237043516 | J17: 0.9183060178 | K17: =K16/J16 -> 0.7736772632 | L17: =L16/K16 -> 1.283038317
A18: ADÓZÁS ELŐTTI EREDMÉNY | B18: Ft | C18: -30784000000 | D18: -1238000000 | E18: 9762000000 | F18: 913000000 | G18: 100937000000 | H18: 33652000000 | I18: 33653000000 | J18: 36724000000 | K18: 27586000000 | L18: 36067000000
B19: % | C19: 100 | D19: =D18/C18 -> 0.04021569647 | E19: -7.885298869 | F19: 0.09352591682 | G19: 110.5553122 | H19: 0.3333960787 | I19: 1.000029716 | J19: 1.091254866 | K19: =K18/J18 -> 0.7511708964 | L19: =L18/K18 -> 1.307438556
A20: ADÓZOTT EREDMÉNY | B20: Ft | C20: -30784000000 | D20: -1238000000 | E20: 9762000000 | F20: 913000000 | G20: 100937000000 | H20: 33502000000 | I20: 33653000000 | J20: 36724000000 | K20: 27585000000 | L20: 36067000000
B21: % | C21: 100 | D21: =D20/C20 -> 0.04021569647 | E21: -7.885298869 | F21: 0.09352591682 | G21: 110.5553122 | H21: 0.3319100033 | I21: 1.004507194 | J21: 1.091254866 | K21: =K20/J20 -> 0.7511436663 | L21: =L20/K20 -> 1.307485953
A22: Jóváhagyott osztalék, részesedés | B22: Ft | C22: 0 | D22: 0 | E22: 4992000000 | F22: 0 | G22: 0 | H22: 1002000000 | I22: 38811000000 | J22: 35055000000 | K22: 12520000000 | L22: 10016000000
B23: % | C23: 100 | D23: =D22/C22 ->  | F23: 0 | I23: 38.73353293 | J23: 0.903223313 | K23: =K22/J22 -> 0.3571530452 | L23: =L22/K22 -> 0.8
A24: Árbevétel arányos adózott eredmény | C24: -0.07913075442 | D24: -0.003124518892 | E24: 0.02570469357 | F24: =F20/F12 -> 0.002280954653 | G24: 0.4491118942 | H24: 2.336914062 | I24: 2.541767372 | J24: 3.494861058 | K24: 2.576592565 | L24: 2.79892907
A25: Jegyzett tőke arányos adózott eredmény | C25: -0.1541612624 | D25: -0.006199702534 | E25: 0.04888650738 | F25: =F20/F27 -> 0.004557798678 | G25: 0.5038888556 | H25: 0.1672457517 | I25: 0.1679995607 | J25: 0.1833303381 | K25: 0.1377074223 | L25: 0.1800505202
A26: Saját tőke arányos adózott eredmény | C26: =C20/C28 -> -0.1397633684 | D26: -0.00452847857 | E26: 0.02535380268 | F26: 0.002324403178 | G26: 0.3072934901 | H26: 0.09273011611 | I26: 0.09415691607 | J26: 0.1021396368 | K26: =K20/K28 -> 0.0735190254 | L26: =L20/L28 -> 0.08993636355
A27: jegyzett tőke | F27: 200316000000 | G27: 200316000000 | H27: 200316000000 | I27: 200316000000 | J27: 200316000000 | K27: 200316000000 | L27: 200316000000
A28: saját tőke | C28: 220258000000 | D28: 273381000000 | E28: 385031000000 | F28: 392789000000 | G28: 328471000000 | H28: 361285000000 | I28: 357414000000 | J28: 359547000000 | K28: 375209000000 | L28: 401028000000

Sheet Munka11
A1: MVM Partner Energiakereskedelmi Zártkörűen Működő Részvénytársaság
C11: 2002. év | D11: 2003. év | E11: 2004. év | F11: 2005. év | G11: 2006. év | H11: 2007. év | I11: 2008. év | J11: 2009. év | K11: 2010. év | L11: 2011. év
A12: Értékesítés nettó árbevétele | B12: Ft | C12: 0 | D12: 12067960000 | E12: 24511994000 | F12: 43250658000 | G12: 48867277000 | H12: 30276323000 | I12: 90979054000 | J12: 75120437000 | K12: 69099464000 | L12: 134152970000
B13: % | C13: 100 | D13: =D12/C12 ->  | E13: 2.031163013 | F13: 1.764469182 | G13: 1.129862047 | H13: 0.6195623096 | I13: 3.004957174 | J13: 0.8256893614 | K13: =K12/J12 -> 0.9198490685 | L13: =L12/K12 -> 1.941447332
A14: ÜZEMI (ÜZLETI) TEVÉKENYSÉG EREDMÉNYE | B14: Ft | C14: -894000 | D14: 1945489000 | E14: 1680725000 | F14: 473675000 | G14: 1727185000 | H14: 2522326000 | I14: 5482826000 | J14: 9058139000 | K14: 534018000 | L14: 1103226000
B15: % | C15: 100 | D15: =D14/C14 -> -2176.162192 | E15: 0.8639087654 | F15: 0.2818277827 | G15: 3.646350346 | H15: 1.460368171 | I15: 2.173718227 | J15: 1.652093099 | K15: =K14/J14 -> 0.05895449385 | L15: =L14/K14 -> 2.065896655
A16: SZOKÁSOS VÁLLALKOZÁSI EREDMÉNY | B16: Ft | C16: -890000 | D16: 1937711000 | E16: 1837805000 | F16: 507415000 | G16: 1605597000 | H16: 2582368000 | I16: 5487252000 | J16: 8682070000 | K16: 740783000 | L16: 717335000
B17: % | C17: 100 | D17: =D16/C16 -> -2177.203371 | E17: 0.9484412278 | F17: 0.2760983891 | G17: 3.164267907 | H17: 1.608353777 | I17: 2.124891572 | J17: 1.582225493 | K17: =K16/J16 -> 0.08532331575 | L17: =L16/K16 -> 0.9683470058
A18: ADÓZÁS ELŐTTI EREDMÉNY | B18: Ft | C18: -890000 | D18: 1937711000 | E18: 1837805000 | F18: 507415000 | G18: 1605578000 | H18: 2582368000 | I18: 5487252000 | J18: 8681470000 | K18: 712446000 | L18: 707335000
B19: % | C19: 100 | D19: =D18/C18 -> -2177.203371 | E19: 0.9484412278 | F19: 0.2760983891 | G19: 3.164230462 | H19: 1.60837281 | I19: 2.124891572 | J19: 1.582116148 | K19: =K18/J18 -> 0.08206513413 | L19: =L18/K18 -> 0.992826123
A20: ADÓZOTT EREDMÉNY | B20: Ft | C20: -890000 | D20: 1591339000 | E20: 1544349000 | F20: 425329000 | G20: 1337097000 | H20: 2091776000 | I20: 4386308000 | J20: 6267376000 | K20: 498914000 | L20: 509839000
B21: % | C21: 100 | D21: =D20/C20 -> -1788.021348 | E21: 0.970471408 | F21: 0.2754098976 | G21: 3.143677012 | H21: 1.564416045 | I21: 2.096930073 | J21: 1.428849958 | K21: =K20/J20 -> 0.07960492557 | L21: =L20/K20 -> 1.021897562
A22: Jóváhagyott osztalék, részesedés | B22: Ft | C22: 0 | D22: 1200000000 | E22: 1000000000 | F22: 400000000 | G22: 1337097000 | H22: 2091776000 | I22: 4386308000 | J22: 3267376000 | K22: 498914000 | L22: 509839000
B23: % | C23: 100 | D23: =D22/C22 ->  | E23: 0.8333333333 | F23: 0.4 | G23: 3.3427425 | H23: 1.564416045 | I23: 2.096930073 | J23: 0.7449034587 | K23: =K22/J22 -> 0.1526956187 | L23: =L22/K22 -> 1.021897562
A24: Árbevétel arányos adózott eredmény | D24: 0.1318647891 | E24: 0.06300380948 | F24: =F20/F12 -> 0.009834046918 | G24: 0.02736180696 | H24: 0.06908949941 | I24: 0.04821228412 | J24: 0.08343103755 | K24: 0.007220229668 | L24: 0.00380043021
A25: Jegyzett tőke arányos adózott eredmény | C25: -0.0178 | D25: 31.82678 | E25: 30.88698 | F25: =F20/F27 -> 0.850658 | G25: 2.674194 | H25: 4.183552 | I25: 8.772616 | J25: 12.534752 | K25: 0.249457 | L25: 0.2549195
A26: Saját tőke arányos adózott eredmény | C26: =C20/C28 -> -0.01812258196 | D26: 3.734888775 | E26: 1.591418381 | F26: 0.4271435056 | G26: 1.34280122 | H26: 2.100699773 | I26: 4.405020527 | J26: 1.568509365 | K26: =K20/K28 -> 0.1248610712 | L26: =L20/L28 -> 0.1275952242
A27: jegyzett tőke | F27: 500000000 | G27: 500000000 | H27: 500000000 | I27: 500000000 | J27: 500000000 | K27: 2000000000 | L27: 2000000000
A28: saját tőke | C28: 49110000 | D28: 426074000 | E28: 970423000 | F28: 995752000 | G28: 995752000 | H28: 995752000 | I28: 995752000 | J28: 3995753000 | K28: 3995753000 | L28: 3995753000

Sheet Munka12
A1: Országos Villamostávvezeték Részvénytársaság
C11: 2002. év | D11: 2003. év | E11: 2004. év | F11: 2005. év | G11: 2006. év | H11: 2007. év | I11: 2008. év | J11: 2009. év | K11: 2010. év | L11: 2011. év
A12: Értékesítés nettó árbevétele | B12: Ft | C12: 13512367000 | D12: 21397797000 | E12: 24864390000 | F12: 25623498000 | G12: 27430907000 | H12: 34850020000 | I12: 46509486000 | J12: 45678996000 | K12: 47472011000 | L12: 47864135000
B13: % | C13: 100 | D13: =D12/C12 -> 1.583571331 | E13: 1.162007005 | F13: 1.030529927 | G13: 1.070537169 | H13: 1.270465464 | I13: 1.334561243 | J13: 0.9821436427 | K13: =K12/J12 -> 1.039252505 | L13: =L12/K12 -> 1.008260109
A14: ÜZEMI (ÜZLETI) TEVÉKENYSÉG EREDMÉNYE | B14: Ft | C14: 223938000 | D14: 416941000 | E14: 508852000 | F14: 516406000 | G14: 469610000 | H14: 468426000 | I14: 730094000 | J14: 737992000 | K14: 677336000 | L14: 1305484000
B15: % | C15: 100 | D15: =D14/C14 -> 1.861859086 | E15: 1.220441261 | F15: 1.014845181 | G15: 0.9093813782 | H15: 0.997478759 | I15: 1.558611179 | J15: 1.010817785 | K15: =K14/J14 -> 0.9178094071 | L15: =L14/K14 -> 1.927380207
A16: SZOKÁSOS VÁLLALKOZÁSI EREDMÉNY | B16: Ft | C16: 211114000 | D16: 366030000 | E16: 380746000 | F16: 373132000 | G16: 306856000 | H16: 243399000 | I16: 504201000 | J16: 360456000 | K16: 521296000 | L16: 1168664000
B17: % | C17: 100 | D17: =D16/C16 -> 1.73380259 | E17: 1.040204355 | F17: 0.9800024163 | G17: 0.8223792116 | H17: 0.7932026749 | I17: 2.071499883 | J17: 0.7149053651 | K17: =K16/J16 -> 1.446212575 | L17: =L16/K16 -> 2.241843406
A18: ADÓZÁS ELŐTTI EREDMÉNY | B18: Ft | C18: 205288000 | D18: 361112000 | E18: 384967000 | F18: 372585000 | G18: 306856000 | H18: 243419000 | I18: 503779000 | J18: 361191000 | K18: 524700000 | L18: 1180757000
B19: % | C19: 100 | D19: =D18/C18 -> 1.7590507 | E19: 1.066059837 | F19: 0.9678362041 | G19: 0.8235865641 | H19: 0.793267852 | I19: 2.069596046 | J19: 0.7169631922 | K19: =K18/J18 -> 1.452694004 | L19: =L18/K18 -> 2.250346865
A20: ADÓZOTT EREDMÉNY | B20: Ft | C20: 172469000 | D20: 32326500 | E20: 368676000 | F20: 374769000 | G20: 304076000 | H20: 215797000 | I20: 463960000 | J20: 325237000 | K20: 484352000 | L20: 1068537000
B21: % | C21: 100 | D21: =D20/C20 -> 0.1874336837 | E21: 11.4047608 | F21: 1.016526706 | G21: 0.8113691367 | H21: 0.7096811323 | I21: 2.149983549 | J21: 0.7010022416 | K21: =K20/J20 -> 1.489227855 | L21: =L20/K20 -> 2.206116626
A22: Jóváhagyott osztalék, részesedés | B22: Ft | C22: 170000000 | D22: -150000000 | E22: -150000000 | F22: 374000000 | G22: 304076000 | H22: 215797000 | I22: 463960000 | J22: 0 | K22: 484352000 | L22: 1068537000
B23: % | C23: 100 | D23: =D22/C22 -> -0.8823529412 | E23: 1 | F23: -2.493333333 | G23: 0.8130374332 | H23: 0.7096811323 | I23: 2.149983549 | J23: 0 | K23: =K22/J22 ->  | L23: =L22/K22 -> 2.206116626
A24: Árbevétel arányos adózott eredmény | C24: 0.01276378891 | D24: 0.001510739634 | E24: 0.01482747013 | F24: =F20/F12 -> 0.014625989 | G24: 0.01108516025 | H24: 0.006192162874 | I24: 0.009975599386 | J24: 0.007120055791 | K24: 0.01020289619 | L24: 0.02232437711
A25: Jegyzett tőke arányos adózott eredmény | C25: 0.03813483807 | D25: 0.007147753178 | E25: 0.08151841525 | F25: =F20/F27 -> 0.08286564616 | G25: 0.06723462779 | H25: 0.04771514678 | I25: 0.1025867806 | J25: 0.07191356319 | K25: 0.08350896552 | L25: 0.1369919231
A26: Saját tőke arányos adózott eredmény | C26: =C20/C28 -> 0.03246593241 | D26: 0.005893004412 | E26: 0.06463183228 | F26: 0.06569112765 | G26: 0.05329975353 | H26: 0.03782582944 | I26: 0.08132491104 | J26: 0.05393421239 | K26: 0.06628018552 | L26: 0.1148020917
A27: jegyzett tőke | F27: 4522610000 | G27: 4522610000 | H27: 4522610000 | I27: 4522610000 | J27: 4522610000 | K27: 5800000000 | L27: 7800000000
A28: saját tőke | C28: 5312307000 | D28: 5485572000 | E28: 5704248000 | F28: 5705017000 | G28: 5705017000 | H28: 5705017000 | I28: 5705017000 | J28: 6030254000 | K28: 7307644000 | L28: 9307644000

Sheet Munka13
A1: Paksi Atomerőmű Részvénytársaság
C11: 2002. év | D11: 2003. év | E11: 2004. év | F11: 2005. év | G11: 2006. év | H11: 2007. év | I11: 2008. év | J11: 2009. év | K11: 2010. év | L11: 2011. év
A12: Értékesítés nettó árbevétele | B12: Ft | C12: 96532000000 | D12: 84073000000 | E12: 95853000000 | F12: 110318000000 | G12: 112383000000 | H12: 133489000000 | I12: 144274000000 | J12: 156984000000 | K12: 167867000000 | L12: 174616000000
B13: % | C13: 100 | D13: =D12/C12 -> 0.8709339908 | E13: 1.140116327 | F13: 1.150908161 | G13: 1.018718613 | H13: 1.187804205 | I13: 1.080793174 | J13: 1.088096261 | K13: =K12/J12 -> 1.069325536 | L13: =L12/K12 -> 1.040204448
A14: ÜZEMI (ÜZLETI) TEVÉKENYSÉG EREDMÉNYE | B14: Ft | C14: 7408000000 | D14: -3756000000 | E14: -825000000 | F14: 4376000000 | G14: 4489000000 | H14: 9885000000 | I14: 21424000000 | J14: 27160000000 | K14: 27127000000 | L14: 29447000000
B15: % | C15: 100 | D15: =D14/C14 -> -0.5070194384 | E15: 0.2196485623 | F15: -5.304242424 | G15: 1.025822669 | H15: 2.202049454 | I15: 2.167324229 | J15: 1.267737117 | K15: =K14/J14 -> 0.9987849779 | L15: =L14/K14 -> 1.085523648
A16: SZOKÁSOS VÁLLALKOZÁSI EREDMÉNY | B16: Ft | C16: 4629000000 | D16: -6352000000 | E16: -4418000000 | F16: 2890000000 | G16: 2944000000 | H16: 8278000000 | I16: 21779000000 | J16: 27965000000 | K16: 27871000000 | L16: 30428000000
B17: % | C17: 100 | D17: =D16/C16 -> -1.372218622 | E17: 0.6955289673 | F17: -0.6541421458 | G17: 1.018685121 | H17: 2.811820652 | I17: 2.630949505 | J17: 1.28403508 | K17: =K16/J16 -> 0.9966386555 | L17: =L16/K16 -> 1.091744107
A18: ADÓZÁS ELŐTTI EREDMÉNY | B18: Ft | C18: 3572000000 | D18: -6603000000 | E18: -4678000000 | F18: 2573000000 | G18: 2795000000 | H18: 8136000000 | I18: 21606000000 | J18: 25640000000 | K18: 27818000000 | L18: 30089000000
B19: % | C19: 100 | D19: =D18/C18 -> -1.848544233 | E19: 0.7084658489 | F19: -0.5500213767 | G19: 1.086280606 | H19: 2.910912343 | I19: 2.65560472 | J19: 1.186707396 | K19: =K18/J18 -> 1.084945398 | L19: =L18/K18 -> 1.081637788
A20: ADÓZOTT EREDMÉNY | B20: Ft | C20: 3572000000 | D20: -6603000000 | E20: -4678000000 | F20: 2573000000 | G20: 2795000000 | H20: 7753000000 | I20: 18384000000 | J20: 17069000000 | K20: 19063000000 | L20: 20757000000
B21: % | C21: 100 | D21: =D20/C20 -> -1.848544233 | E21: 0.7084658489 | F21: -0.5500213767 | G21: 1.086280606 | H21: 2.773881932 | I21: 2.371211144 | J21: 0.9284704091 | K21: =K20/J20 -> 1.116819966 | L21: =L20/K20 -> 1.088863243
A22: Jóváhagyott osztalék, részesedés | B22: Ft | C22: 3572000000 | D22: 0 | E22: 0 | F22: 0 | G22: 0 | H22: 3841000000 | I22: 18382000000 | J22: 17065000000 | K22: 19053000000 | L22: 20762000000
B23: % | C23: 100 | D23: =D22/C22 -> 0 | I23: 4.785732882 | J23: 0.9283538244 | K23: =K22/J22 -> 1.116495752 | L23: =L22/K22 -> 1.089697161
A24: Árbevétel arányos adózott eredmény | C24: 0.03700327353 | D24: -0.07853888882 | E24: -0.04880389763 | F24: =F20/F12 -> 0.02332348302 | G24: 0.02487030957 | H24: 0.05807969196 | I24: 0.1274242067 | J24: 0.1087308261 | K24: 0.1135601399 | L24: 0.1188722683
A25: Jegyzett tőke arányos adózott eredmény | C25: 0.02821507279 | D25: -0.05215681009 | E25: -0.03695131873 | F25: =F20/F27 -> 0.0203240152 | G25: 0.02207758355 | H25: 0.06124061012 | I25: 0.1452144172 | J25: 0.1348272893 | K25: 0.1505778087 | L25: 0.1639586411
A26: Saját tőke arányos adózott eredmény | C26: =C20/C28 -> 0.02714347592 | D26: -0.05282653567 | E26: -0.03888062369 | F26: 0.02093759409 | G26: 0.02223813502 | H26: 0.05982391568 | I26: 0.1418529464 | J26: 0.1317021983 | K26: =K20/K28 -> 0.1470762964 | L26: =L20/L28 -> 0.1601521511
A27: jegyzett tőke | F27: 126599000000 | G27: 126599000000 | H27: 126599000000 | I27: 126599000000 | J27: 126599000000 | K27: 126599000000 | L27: 126599000000
A28: saját tőke | C28: 131597000000 | D28: 124994000000 | E28: 120317000000 | F28: 122889000000 | G28: 125685000000 | H28: 129597000000 | I28: 129599000000 | J28: 129603000000 | K28: 129613000000 | L28: 129608000000

Sheet Munka14
A1: Pannon Hőerőmű Energiatermelő, Kereskedelmi és Szolgáltató Részvénytársaság
C11: 2002. év | D11: 2003. év | E11: 2004. év | F11: 2005. év | G11: 2006. év | H11: 2007. év | I11: 2008. év | J11: 2009. év | K11: 2010. év | L11: 2011. év
A12: Értékesítés nettó árbevétele | B12: Ft | C12: 12334996000 | D12: 12362152000 | E12: 11397444000 | F12: 9386704000 | G12: 10877041000 | H12: 1194352000 | I12: 1607963000 | J12: 1918271000 | K12: 2126253000 | L12: 2446858000
B13: % | C13: 100 | D13: =D12/C12 -> 1.002201541 | E13: 0.921962778 | F13: 0.823579743 | G13: 1.158771066 | H13: 0.1098048633 | I13: 1.346305779 | J13: 1.192982052 | K13: =K12/J12 -> 1.108421594 | L13: =L12/K12 -> 1.150784032
A14: ÜZEMI (ÜZLETI) TEVÉKENYSÉG EREDMÉNYE | B14: Ft | C14: 780282000 | D14: 1131924000 | E14: 139361000 | F14: 438579000 | G14: -2204294000 | H14: 37781000 | I14: 488248000 | J14: 427249000 | K14: 738449000 | L14: 1153199000
B15: % | C15: 100 | D15: =D14/C14 -> 1.450660146 | E15: 0.1231186899 | F15: 3.147071275 | G15: -5.025990757 | H15: -0.01713972819 | I15: 12.9231095 | J15: 0.8750655405 | K15: =K14/J14 -> 1.728380874 | L15: =L14/K14 -> 1.561650161
A16: SZOKÁSOS VÁLLALKOZÁSI EREDMÉNY | B16: Ft | C16: 1292269000 | D16: -13161257000 | E16: 418007000 | F16: 735334000 | G16: -2268730000 | H16: 2265597000 | I16: 1708748000 | J16: 1253257000 | K16: 2200900000 | L16: 2689207000
B17: % | C17: 100 | D17: =D16/C16 -> -10.18461094 | E17: -0.0317604162 | F17: 1.759142789 | G17: -3.085305453 | H17: -0.9986190512 | I17: 0.7542153349 | J17: 0.7334358255 | K17: =K16/J16 -> 1.756144191 | L17: =L16/K16 -> 1.221866964
A18: ADÓZÁS ELŐTTI EREDMÉNY | B18: Ft | C18: 467295000 | D18: -6893137000 | E18: 418825000 | F18: 637679000 | G18: 481013000 | H18: 2222426000 | I18: 1699684000 | J18: 1244977000 | K18: 2190439000 | L18: 2674729000
B19: % | C19: 100 | D19: =D18/C18 -> -14.75114649 | E19: -0.06075970926 | F19: 1.522542828 | G19: 0.7543183953 | H19: 4.620303401 | I19: 0.764787669 | J19: 0.732475566 | K19: =K18/J18 -> 1.759421258 | L19: =L18/K18 -> 1.221092667
A20: ADÓZOTT EREDMÉNY | B20: Ft | C20: 317540000 | D20: -6893137000 | E20: 410594000 | F20: 638001000 | G20: 472140000 | H20: 2194313000 | I20: 1696098000 | J20: 1244977000 | K20: 2192038000 | L20: 2675217000
B21: % | C21: 100 | D21: =D20/C20 -> -21.70793286 | E21: -0.05956562302 | F21: 1.553848814 | G21: 0.740030188 | H21: 4.647589698 | I21: 0.7729517166 | J21: 0.7340242132 | K21: =K20/J20 -> 1.760705619 | L21: =L20/K20 -> 1.220424555
A22: Jóváhagyott osztalék, részesedés | B22: Ft | C22: 0 | D22: 0 | E22: 0 | F22: 638001000 | G22: 472140000 | H22: 875000000 | I22: 2398877000 | J22: 1250082000 | K22: 1972410000 | L22: 2500163000
B23: % | C23: 100 | D23: =D22/C22 ->  | G23: 0.740030188 | H23: 1.853263862 | I23: 2.741573714 | J23: 0.5211113367 | K23: =K22/J22 -> 1.577824495 | L23: =L22/K22 -> 1.267567595
A24: Árbevétel arányos adózott eredmény | C24: 0.02574301605 | D24: -0.5576000845 | E24: 0.03602509475 | F24: =F20/F12 -> 0.0679685862 | G24: 0.04340702586 | H24: 1.83724145 | I24: 1.054811585 | J24: 0.6490099678 | K24: 1.030939404 | L24: 1.093327443
A25: Jegyzett tőke arányos adózott eredmény | C25: 0.4288797586 | D25: -9.310093005 | E25: 0.5545614902 | F25: =F20/F27 -> 0.861704714 | G25: 0.6376875015 | H25: 28.38807457 | I25: 21.94261097 | J25: 16.10640775 | K25: 28.35864264 | L25: 34.60958381
A26: Saját tőke arányos adózott eredmény | C26: =C20/C28 -> 0.0233864998 | D26: -0.5058821854 | E26: 0.02817491153 | F26: 0.04605623862 | G26: 0.0357800082 | H26: 0.3279527756 | I26: 0.2834548002 | J26: 0.2082403483 | K26: =K20/K28 -> 0.3658901484 | L26: =L20/L28 -> 0.4342160812
A27: jegyzett tőke | F27: 740394000 | G27: 740394000 | H27: 77297000 | I27: 77297000 | J27: 77297000 | K27: 77297000 | L27: 77297000
A28: saját tőke | C28: 13577919000 | D28: 13625973000 | E28: 14573036000 | F28: 13852651000 | G28: 13195637000 | H28: 6690942000 | I28: 5983663000 | J28: 5978558000 | K28: 5990973000 | L28: 6161027000

Sheet Munka15
A1: Tiszavíz Vízerőmű Energetikai Korlátolt Felelősségű Társaság
C11: 2002. év | D11: 2003. év | E11: 2004. év | F11: 2005. év | G11: 2006. év | H11: 2007. év | I11: 2008. év | J11: 2009. év | K11: 2010. év | L11: 2011. év
A12: Értékesítés nettó árbevétele | B12: Ft | C12: 2442089000 | D12: 1481026000 | E12: 1754550000 | F12: 1971006000 | G12: 1805512000 | H12: 2459178000 | I12: 2479122000 | J12: 2658767000 | K12: 2020408000 | L12: 2925962000
B13: % | C13: 100 | D13: =D12/C12 -> 0.6064586508 | E13: 1.184685482 | F13: 1.123368385 | G13: 0.9160357706 | H13: 1.362039133 | I13: 1.008110027 | J13: 1.072463154 | K13: =K12/J12 -> 0.759904121 | L13: =L12/K12 -> 1.448203531
A14: ÜZEMI (ÜZLETI) TEVÉKENYSÉG EREDMÉNYE | B14: Ft | C14: 371889000 | D14: 211619000 | E14: 414480000 | F14: 524644000 | G14: 109180000 | H14: 659421000 | I14: 704728000 | J14: 880796000 | K14: 349335000 | L14: 1119785000
B15: % | C15: 100 | D15: =D14/C14 -> 0.5690380732 | E15: 1.958614302 | F15: 1.265788458 | G15: 0.2081030184 | H15: 6.039760029 | I15: 1.068707245 | J15: 1.249838235 | K15: =K14/J14 -> 0.3966128366 | L15: =L14/K14 -> 3.205476119
A16: SZOKÁSOS VÁLLALKOZÁSI EREDMÉNY | B16: Ft | C16: 575261000 | D16: 372205000 | E16: 632022000 | F16: 704130000 | G16: 243543000 | H16: 852777000 | I16: 987854000 | J16: 1141324000 | K16: 457095000 | L16: 1266247000
B17: % | C17: 100 | D17: =D16/C16 -> 0.647019353 | E17: 1.698048119 | F17: 1.114090965 | G17: 0.3458778919 | H17: 3.501545928 | I17: 1.158396627 | J17: 1.155356966 | K17: =K16/J16 -> 0.4004953896 | L17: =L16/K16 -> 2.770205318
A18: ADÓZÁS ELŐTTI EREDMÉNY | B18: Ft | C18: 567361000 | D18: 363705000 | E18: 623022000 | F18: 677834000 | G18: 234962000 | H18: 828126000 | I18: 959179000 | J18: 1111400000 | K18: 413241000 | L18: 1222396000
B19: % | C19: 100 | D19: =D18/C18 -> 0.641046882 | E19: 1.712987174 | F19: 1.087977632 | G19: 0.3466364921 | H19: 3.524510346 | I19: 1.158252488 | J19: 1.158699263 | K19: =K18/J18 -> 0.3718202267 | L19: =L18/K18 -> 2.958070472
A20: ADÓZOTT EREDMÉNY | B20: Ft | C20: 550000000 | D20: 300000000 | E20: 553336000 | F20: 512959000 | G20: 197236000 | H20: 669041000 | I20: 878943000 | J20: 1065747000 | K20: 413415000 | L20: 1069215000
B21: % | C21: 100 | D21: =D20/C20 -> 0.5454545455 | E21: 1.844453333 | F21: 0.9270298697 | G21: 0.3845063641 | H21: 3.392083595 | I21: 1.313735631 | J21: 1.212532553 | K21: =K20/J20 -> 0.3879110145 | L21: =L20/K20 -> 2.586299481
A22: Jóváhagyott osztalék, részesedés | B22: Ft | C22: 550000000 | D22: 300000000 | E22: 450000000 | F22: 0 | G22: 0 | H22: 0 | I22: 0 | J22: 0 | K22: 0 | L22: 0
B23: % | C23: 100 | D23: =D22/C22 -> 0.5454545455 | E23: 1.5 | F23: 0 | K23: =K22/J22 ->  | L23: =L22/K22 -> 
A24: Árbevétel arányos adózott eredmény | C24: 0.2252170171 | D24: 0.2025622778 | E24: 0.3153720327 | F24: =F20/F12 -> 0.2602523787 | G24: 0.1092410352 | H24: 0.2720587936 | I24: 0.3545380179 | J24: 0.400842571 | K24: 0.204619562 | L24: 0.365423406
A25: Jegyzett tőke arányos adózott eredmény | C25: 0.1193348492 | D25: 0.06509173595 | E25: =E20/F27 -> 0.1150654622 | F25: =F20/F27 -> 0.1066691205 | G25: 0.04101495567 | H25: 0.1391261583 | I25: 0.1827749913 | J25: 0.2216206268 | K25: 0.08598324324 | L25: 0.2223784174
A26: Saját tőke arányos adózott eredmény | C26: =C20/C28 -> 0.1154998972 | D26: 0.06299994393 | E26: 0.109241705 | F26: 0.09195773407 | G26: 0.03415081795 | H26: 0.103816118 | I26: 0.1200180407 | J26: 0.1270384165 | K26: =K20/K28 -> 0.04696517592 | L26: =L20/L28 -> 0.1083100237
A27: jegyzett tőke | F27: 4808880000 | G27: 4808880000 | H27: 4808880000 | I27: 4808880000 | J27: 4808880000 | K27: 4808088000 | L27: 4808088000
A28: saját tőke | C28: 4761909000 | D28: 4761909000 | E28: 5065245000 | F28: 5578204000 | G28: 5775440000 | H28: 6444481000 | I28: 7323424000 | J28: 8389171000 | K28: 8802586000 | L28: 9871801000

Sheet Munka16
A1: E. ON Tiszántúli Áramszolgáltató Zártkörűen Működő Részvénytársaság
C11: 2002. év | D11: 2003. év | E11: 2004. év | F11: 2005. év | G11: 2006. év | H11: 2007. év | I11: 2008. év | J11: 2009. év | K11: 2010. év | L11: 2011. év
A12: Értékesítés nettó árbevétele | B12: Ft | C12: 65868862000 | D12: 73782083000 | E12: 76134605000 | F12: 75998998000 | G12: 85763498000 | H12: 93885123000 | I12: 47957183000 | J12: 50848962000 | K12: 46063715000 | L12: 44231891000
B13: % | C13: 100 | D13: =D12/C12 -> 1.120135991 | E13: 1.031884733 | F13: 0.998218852 | G13: 1.128481957 | H13: 1.094697921 | I13: 0.510807053 | J13: 1.060299184 | K13: =K12/J12 -> 0.9058929266 | L13: =L12/K12 -> 0.960232821
A14: ÜZEMI (ÜZLETI) TEVÉKENYSÉG EREDMÉNYE | B14: Ft | C14: 2457725000 | D14: 2599208000 | E14: 1532762000 | F14: 3686865000 | G14: -2708887000 | H14: 5990386000 | I14: 8488232000 | J14: 5678679000 | K14: 2227986000 | L14: 2750072000
B15: % | C15: 100 | D15: =D14/C14 -> 1.057566652 | E15: 0.5897034789 | F15: 2.405373437 | G15: -0.7347399484 | H15: -2.211382756 | I15: 1.416975801 | J15: 0.6690061016 | K15: =K14/J14 -> 0.3923423036 | L15: =L14/K14 -> 1.234330916
A16: SZOKÁSOS VÁLLALKOZÁSI EREDMÉNY | B16: Ft | C16: 2719229000 | D16: 2584468000 | E16: 630222000 | F16: 972150000 | G16: -3259396000 | H16: 5197153000 | I16: 7331808000 | J16: 4349524000 | K16: 799159000 | L16: 762254000
B17: % | C17: 100 | D17: =D16/C16 -> 0.950441467 | E17: 0.2438497981 | F17: 1.542551672 | G17: -3.352770663 | H17: -1.594514137 | I17: 1.410735455 | J17: 0.5932403031 | K17: =K16/J16 -> 0.1837348179 | L17: =L16/K16 -> 0.9538202035
A18: ADÓZÁS ELŐTTI EREDMÉNY | B18: Ft | C18: 3328553000 | D18: 3326730000 | E18: 1464240000 | F18: 1804645000 | G18: -2312960000 | H18: 6004801000 | I18: 8150803000 | J18: 5121134000 | K18: 1485085000 | L18: 1351929000
B19: % | C19: 100 | D19: =D18/C18 -> 0.9994523146 | E19: 0.4401439251 | F19: 1.232478965 | G19: -1.281670356 | H19: -2.596154279 | I19: 1.357381036 | J19: 0.6282980953 | K19: =K18/J18 -> 0.2899914355 | L19: =L18/K18 -> 0.9103377921
A20: ADÓZOTT EREDMÉNY | B20: Ft | C20: 2813772000 | D20: 2868659000 | E20: 1271730000 | F20: 1748142000 | G20: -2340529000 | H20: 5510430000 | I20: 6961540000 | J20: 4542038000 | K20: 1406072000 | L20: 1351929000
B21: % | C21: 100 | D21: =D20/C20 -> 1.019506556 | E21: 0.4433186377 | F21: 1.374617254 | G21: -1.338866637 | H21: -2.354352371 | I21: 1.263338796 | J21: 0.6524473033 | K21: =K20/J20 -> 0.3095685241 | L21: =L20/K20 -> 0.961493437
A22: Jóváhagyott osztalék, részesedés | B22: Ft | C22: 2527729000 | D22: 2852236000 | E22: 1270697000 | F22: 1745500000 | G22: 0 | H22: 3907734000 | I22: 6951257000 | J22: 4539666000 | K22: 1393667000 | L22: 1349261000
B23: % | C23: 100 | D23: =D22/C22 -> 1.128378873 | E23: 0.4455090673 | F23: 1.373655561 | G23: 0 | I23: 1.778846001 | J23: 0.6530712359 | K23: =K22/J22 -> 0.3069976954 | L23: =L22/K22 -> 0.9681372954
A24: Árbevétel arányos adózott eredmény | C24: 0.04271778674 | D24: 0.0388801574 | E24: 0.01670370523 | F24: =F20/F12 -> 0.02300217169 | G24: -0.02729050301 | H24: 0.05869332461 | I24: 0.1451615705 | J24: 0.08932410459 | K24: 0.03052450285 | L24: 0.03056457613
A25: Jegyzett tőke arányos adózott eredmény | C25: 0.08237396772 | D25: 0.0839808001 | E25: 0.0372302539 | F25: =F20/F27 -> 0.05117734936 | G25: -0.06851964562 | H25: 0.1613193901 | I25: 0.203801044 | J25: 0.1329694416 | K25: 0.04116315378 | L25: 0.03957810221
A26: Saját tőke arányos adózott eredmény | C26: =C20/C28 -> 0.08058657806 | D26: 0.08211992142 | E26: 0.03640421517 | F26: 0.0499659356 | G26: -0.07169388167 | H26: 0.1608939023 | I26: 0.2032024926 | J26: 0.1325697396 | K26: =K20/K28 -> 0.04102456493 | L26: =L20/L28 -> 0.03944177965
A27: jegyzett tőke | F27: 34158510000 | G27: 34158510000 | H27: 34158510000 | I27: 34158510000 | J27: 34158510000 | K27: 34158510000 | L27: 34158510000
A28: saját tőke | C28: 34916137000 | D28: 34932559000 | E28: 34933592000 | F28: 34986676000 | G28: 32646147000 | H28: 34248843000 | I28: 34259127000 | J28: 34261499000 | K28: 34273904000 | L28: 34276572000

Sheet Munka17
A1: VÉRTESI ERŐMŰ Részvénytársaság
C11: 2002. év | D11: 2003. év | E11: 2004. év | F11: 2005. év | G11: 2006. év | H11: 2007. év | I11: 2008. év | J11: 2009. év | K11: 2010. év | L11: 2011. év
A12: Értékesítés nettó árbevétele | B12: Ft | C12: 28455635000 | D12: 28091881000 | E12: 26864021000 | F12: 20471121000 | G12: 15622397000 | H12: 21718702000 | I12: 31354369000 | J12: 24289488000 | K12: 17066014000 | L12: 20998581000
B13: % | C13: 100 | D13: =D12/C12 -> 0.9872168026 | E13: 0.9562912857 | F13: 0.7620274344 | G13: 0.7631432104 | H13: 1.390228529 | I13: 1.443657591 | J13: 0.7746763457 | K13: =K12/J12 -> 0.7026090463 | L13: =L12/K12 -> 1.23043266
A14: ÜZEMI (ÜZLETI) TEVÉKENYSÉG EREDMÉNYE | B14: Ft | C14: -2046075000 | D14: 396952000 | E14: -2225396000 | F14: -3051891000 | G14: -12790013000 | H14: -11180883000 | I14: -5432465000 | J14: -835846000 | K14: -10665262000 | L14: -1219007000
B15: % | C15: 100 | D15: =D14/C14 -> -0.1940065736 | E15: -5.606209315 | F15: 1.371392327 | G15: 4.190848559 | H15: 0.8741885563 | I15: 0.4858708386 | J15: 0.1538612766 | K15: =K14/J14 -> 12.75984093 | L15: =L14/K14 -> 0.1142969577
A16: SZOKÁSOS VÁLLALKOZÁSI EREDMÉNY | B16: Ft | C16: -2205043000 | D16: 152981000 | E16: -3098802000 | F16: -3983457000 | G16: -13828868000 | H16: -12879336000 | I16: -6619895000 | J16: -2967538000 | K16: -11578671000 | L16: -2140539000
B17: % | C17: 100 | D17: =D16/C16 -> -0.06937778538 | E17: -20.25612331 | F17: 1.285482906 | G17: 3.471574565 | H17: 0.9313369684 | I17: 0.5139935009 | J17: 0.4482756902 | K17: =K16/J16 -> 3.901776826 | L17: =L16/K16 -> 0.1848691443
A18: ADÓZÁS ELŐTTI EREDMÉNY | B18: Ft | C18: -2134644000 | D18: 78257000 | E18: -3091068000 | F18: -1979148000 | G18: 110813000 | H18: -3301733000 | I18: -6611625000 | J18: -3461960000 | K18: -11477558000 | L18: 10879315000
B19: % | C19: 100 | D19: =D18/C18 -> -0.03666044549 | E19: -39.498933 | F19: 0.6402796703 | G19: -0.05599025439 | H19: -29.79553843 | I19: 2.002471127 | J19: 0.5236171138 | K19: =K18/J18 -> 3.315335244 | L19: =L18/K18 -> -0.947877153
A20: ADÓZOTT EREDMÉNY | B20: Ft | C20: -2341251000 | D20: -127637000 | E20: -3093780000 | F20: -1979148000 | G20: 110813000 | H20: -3301733000 | I20: -6611625000 | J20: -3461960000 | K20: -11477558000 | L20: 10315860000
B21: % | C21: 100 | D21: =D20/C20 -> 0.05451658109 | E21: 24.23889624 | F21: 0.6397184027 | G21: -0.05599025439 | H21: -29.79553843 | I21: 2.002471127 | J21: 0.5236171138 | K21: =K20/J20 -> 3.315335244 | L21: =L20/K20 -> -0.8987852643
A22: Jóváhagyott osztalék, részesedés | B22: Ft | C22: 0 | D22: 0 | E22: 0 | F22: 0 | G22: 0 | H22: 0 | I22: 0 | J22: 0 | K22: 0 | L22: 0
B23: % | C23: 100 | D23: =D22/C22 ->  | K23: =K22/J22 ->  | L23: =L22/K22 -> 
A24: Árbevétel arányos adózott eredmény | C24: =C20/C12 -> -0.08227723613 | D24: -0.004543554773 | E24: -0.1151644424 | F24: -0.09668000106 | G24: 0.007093213673 | H24: -0.1520225748 | I24: -0.2108677422 | J24: -0.1425291468 | K24: =K20/K12 -> -0.6725388834 | L24: =L20/L12 -> 0.491264624
A25: Jegyzett tőke arányos adózott eredmény | C25: =C20/C27 -> -0.1287892844 | D25: -0.007021151468 | E25: -0.170184962 | F25: -0.108870452 | G25: 0.006095684305 | H25: -0.181624196 | I25: -0.6754376726 | J25: -0.3536707247 | K25: =K20/K27 -> -22.79930555 | L25: =L20/L27 -> 20.49167986
A26: Saját tőke arányos adózott eredmény | C26: =C20/C28 -> -0.1287428974 | D26: -0.007090614731 | E26: -0.2086471722 | F26: -0.154140897 | G26: 0.008556541759 | H26: -0.3421859783 | I26: -2.176797095 | J26: 8.152655649 | K26: =K20/K28 -> 0.9643223942 | L26: =L20/L28 -> -6.502931276
A27: jegyzett tőke | C27: 18178927000 | D27: 18178927000 | E27: 18178927000 | F27: 18178927000 | G27: 18178927000 | H27: 18178927000 | I27: 9788653000 | J27: 9788653000 | K27: 503417000 | L27: 503417000
A28: saját tőke | C28: 18185477000 | D28: 18000837000 | E28: 14827807000 | F28: 12839863000 | G28: 12950676000 | H28: 9648943000 | I28: 3037318000 | J28: -424642000 | K28: -11902200000 | L28: -1586340000

Sheet Munka18
